bitfinex/quotes_SOLUSD_20250616
["timestamp","ask_amount","ask_price","bid_price","bid_amount"]
[1750114160405,6.5672818,152.27,152.07,0.2003]
[1750114160581,26.0,152.2,152.07,0.2003]
[1750114160778,18.20613075,152.08,152.05,2.919895]
[1750114161107,50.18,152.1,152.05,2.919895]
[1750114161309,50.56,152.15,152.0,1.386941]
[1750114161469,10.0,152.2,152.0,1.386941]
[1750114161678,88.65830432,152.27,152.0,1.386941]
[1750114161679,26.0,152.15,152.0,7.96578357]
[1750114161889,19.67546883,152.22,152.0,34.41315199]
[1750114162205,19.67546883,152.16,152.04,26.0]
[1750114162377,52.28,152.18,152.03,26.0]
[1750114162575,52.28,152.17,152.08,19.67546883]
[1750114162818,19.67546883,152.22,152.13,19.67546883]
[1750114162977,10.32641618,152.2,152.03,26.0]
[1750114163171,10.32641618,152.2,152.05,26.0]
[1750114163412,10.32641618,152.2,152.19,19.67546883]
[1750114163706,10.32641618,152.2,152.15,26.0]
[1750114164004,10.32641618,152.2,152.12,23.00815144]
[1750114164005,10.32641618,152.2,152.12,6.57375755]
[1750114164211,10.32641618,152.2,152.04,6.57721652]
[1750114164376,10.32641618,152.2,152.07,26.0]
[1750114164570,10.32641618,152.2,152.18,19.67546883]
[1750114164773,10.32641618,152.2,152.05,26.0]
[1750114164993,10.32641618,152.2,152.07,26.0]
[1750114165206,10.32641618,152.2,152.16,19.67546883]
[1750114165380,10.32641618,152.2,152.14,19.67546883]
[1750114165587,10.32641618,152.2,152.04,23.02025782]
[1750114165787,10.32641618,152.2,152.07,26.0]
[1750114166092,10.32641618,152.2,152.1,26.0]
[1750114166314,10.32641618,152.2,152.16,19.67546883]
[1750114166483,10.32641618,152.2,152.17,19.67546883]
[1750114166678,10.32641618,152.2,152.16,19.67546883]
[1750114166904,10.32641618,152.2,152.07,26.0]
[1750114167274,10.32641618,152.2,152.04,23.02025782]
[1750114167814,10.32641618,152.2,152.15,19.67546883]
[1750114167981,10.32641618,152.2,152.17,19.67546883]
[1750114168301,10.32641618,152.2,152.19,19.67546883]
[1750114168502,10.32641618,152.2,152.08,26.0]
[1750114168804,10.32641618,152.2,152.19,19.67546883]
[1750114169517,10.0,152.4,152.19,19.67546883]
[1750114169700,19.67546883,152.29,152.19,6.57073395]
[1750114170016,52.48,152.28,152.04,32.8860826]
[1750114170175,10.0,152.37,152.04,32.8860826]
[1750114170176,52.48,152.29,152.06,10.0]
[1750114170377,52.48,152.29,152.21,19.67546883]
[1750114170790,19.67546883,152.28,152.2,19.67546883]
[1750114171099,52.48,152.29,152.24,19.67546883]
[1750114171303,52.48,152.29,152.18,26.0]
[1750114171304,18.79181043,152.33,152.28,19.67546883]
[1750114171481,18.79181043,152.33,152.18,26.0]
[1750114171672,0.14216157,152.32,152.28,6.56685053]
[1750114172083,0.14216157,152.32,152.24,6.56857593]
[1750114172084,0.28432314,152.3,152.24,6.56857593]
[1750114172299,0.28432314,152.3,152.24,26.24404476]
[1750114172497,0.28432314,152.3,152.25,19.67546883]
[1750114173095,0.28432314,152.3,152.23,26.24422213]
[1750114173300,0.28432314,152.3,152.29,19.67546883]
[1750114173688,18.79181043,152.33,152.29,19.67546883]
[1750114174020,0.28432314,152.32,152.24,16.42143983]
[1750114174195,29.55991153,152.48,152.31,39.35093766]
[1750114174530,19.67546883,152.41,152.24,16.42143983]
[1750114174692,18.64964886,152.39,152.34,19.67546883]
[1750114175015,38.32511769,152.35,152.29,19.67546883]
[1750114175214,38.32511769,152.35,152.24,16.42143983]
[1750114175215,18.64964886,152.32,152.24,16.42143983]
[1750114175394,0.14216157,152.34,152.28,19.67546883]
[1750114175712,0.14216157,152.34,152.3,19.67546883]
[1750114175910,6.5596979,152.45,152.33,19.67546883]
[1750114176089,6.5596979,152.45,152.31,22.97944979]
[1750114176090,19.67546883,152.45,152.31,22.97944979]
[1750114176288,19.67546883,152.45,152.4,19.67546883]
[1750114176593,52.54,152.48,152.31,22.97944979]
[1750114176594,19.67546883,152.41,152.31,22.97944979]
[1750114176785,18.64964886,152.4,152.37,19.67546883]
[1750114176989,18.64964886,152.4,152.31,22.97944979]
[1750114177211,19.67546883,152.36,152.31,6.56555708]
[1750114177508,19.67546883,152.34,152.31,6.56555708]
[1750114177722,10.0,152.45,152.31,6.56555708]
[1750114178033,18.64964886,152.46,152.37,19.67546883]
[1750114178213,72.12006097,152.47,152.27,0.28432314]
[1750114178397,19.67546883,152.38,152.33,19.67546883]
[1750114178599,19.67546883,152.38,152.26,55.82556153]
[1750114178600,19.67546883,152.39,152.34,19.67546883]
[1750114178904,18.64964886,152.4,152.35,19.67546883]
[1750114179109,18.64964886,152.4,152.33,19.67546883]
[1750114179417,18.64964886,152.4,152.27,0.28432314]
[1750114179617,18.64964886,152.35,152.26,22.98699592]
[1750114179795,0.14216157,152.35,152.21,32.84935286]
[1750114180114,19.67546883,152.31,152.26,19.67546883]
[1750114180304,19.67546883,152.29,152.21,32.84935286]
[1750114180503,26.0,152.34,152.23,19.67546883]
[1750114180504,19.67546883,152.28,152.23,19.67546883]
[1750114180805,19.67546883,152.28,152.21,32.84935286]
[1750114181009,19.67546883,152.23,152.19,22.99756882]
[1750114181198,18.79181043,152.25,152.19,22.99756882]
[1750114181403,0.14216157,152.32,152.22,19.67546883]
[1750114181715,0.14216157,152.32,152.19,22.99756882]
[1750114181716,18.64964886,152.28,152.24,19.67546883]
[1750114181918,18.79181043,152.3,152.25,6.56814449]
[1750114182108,18.64964886,152.3,152.27,19.67546883]
[1750114182317,6.3,152.31,152.27,19.67546883]
[1750114182318,18.64964886,152.31,152.27,19.67546883]
[1750114182492,18.64964886,152.32,152.25,22.98850573]
[1750114183041,16.7734078,152.44,152.31,19.67546883]
[1750114183191,19.67546883,152.32,152.25,22.98850573]
[1750114183512,19.67546883,152.3,152.25,22.98850573]
[1750114183687,38.32511769,152.26,152.18,19.67546883]
[1750114183889,18.64964886,152.25,152.2,19.67546883]
[1750114184092,0.14216157,152.28,152.17,55.85754549]
[1750114184415,19.67546883,152.25,152.2,19.67546883]
[1750114184596,18.64964886,152.25,152.21,19.67546883]
[1750114184795,39.05,152.38,152.24,19.67546883]
[1750114185122,18.64964886,152.3,152.17,55.8585792]
[1750114185301,26.14216157,152.32,152.17,55.8585792]
[1750114185302,19.67546883,152.27,152.17,55.8585792]
[1750114185501,18.64964886,152.29,152.24,19.67546883]
[1750114185703,18.64964886,152.29,152.17,55.8585792]
[1750114185704,18.64964886,152.3,152.26,19.67546883]
[1750114186015,38.32511769,152.3,152.27,6.5672818]
[1750114186606,18.64964886,152.3,152.27,6.5672818]
[1750114186806,19.67546883,152.34,152.28,19.67546883]
[1750114187120,26.23755468,152.4,152.24,6.56857593]
[1750114187121,18.64964886,152.28,152.24,6.56857593]
[1750114187295,19.67546883,152.26,152.24,6.56857593]
[1750114187498,19.67546883,152.27,152.24,6.56857593]
[1750114187705,0.14216157,152.3,152.24,6.56857593]
[1750114187910,19.67546883,152.3,152.24,26.24404476]
[1750114188132,52.70216157,152.33,152.24,26.24404476]
[1750114188133,52.56,152.33,152.28,19.67546883]
[1750114188426,74.10666283,152.43,152.31,19.67546883]
[1750114188427,19.67546883,152.37,152.31,19.67546883]
[1750114188609,18.65547688,152.43,152.24,22.99001576]
[1750114188610,19.67546883,152.33,152.24,22.99001576]
[1750114188796,19.67546883,152.33,152.28,19.67546883]
[1750114188995,52.56,152.39,152.24,22.99001576]
[1750114188996,18.64964886,152.38,152.24,22.99001576]
[1750114189195,19.67546883,152.35,152.3,19.67546883]
[1750114189423,18.64964886,152.35,152.24,22.99001576]
[1750114189596,18.64964886,152.35,152.24,55.83289542]
[1750114189797,19.67546883,152.34,152.29,19.67546883]
[1750114190094,19.67546883,152.34,152.24,22.99001576]
[1750114190095,19.67546883,152.3,152.24,22.99001576]
[1750114190410,19.67546883,152.27,152.24,22.99001576]
[1750114190620,19.67546883,152.28,152.24,22.99001576]
[1750114190937,18.64964886,152.31,152.24,22.99001576]
[1750114191105,19.67546883,152.28,152.24,22.99001576]
[1750114191297,18.79181043,152.31,152.24,22.99001576]
[1750114191498,26.0,152.35,152.27,19.67546883]
[1750114191698,19.67546883,152.32,152.28,6.56685053]
[1750114191921,18.64964886,152.34,152.3,19.67546883]
[1750114192100,18.64964886,152.35,152.31,19.67546883]
[1750114192300,26.6133386,152.44,152.3,19.67546883]
[1750114192522,19.67546883,152.35,152.3,19.67546883]
[1750114192724,18.64964886,152.35,152.28,6.56685053]
[1750114192934,26.0,152.26,152.09,16.0359]
[1750114193231,18.64964886,152.24,152.14,19.67546883]
[1750114193426,18.64964886,152.22,152.18,19.67546883]
[1750114193595,26.0,152.24,152.11,16.43547432]
[1750114193801,26.0,152.28,152.11,33.00966405]
[1750114194013,0.28432314,152.31,152.15,19.67546883]
[1750114194339,26.0,152.29,152.26,19.67546883]
[1750114194620,18.64964886,152.28,152.15,55.67546883]
[1750114194829,26.0,152.29,152.26,19.67546883]
[1750114195006,44.64964886,152.31,152.18,26.0]
[1750114195207,64.32511769,152.31,152.18,26.0]
[1750114195509,44.64964886,152.31,152.26,19.67546883]
[1750114195829,44.64964886,152.31,152.27,19.67546883]
[1750114196206,26.0,152.31,152.19,55.85123857]
[1750114196403,25.21132865,152.4,152.3,19.67546883]
[1750114196604,18.64964886,152.34,152.23,26.0]
[1750114196913,18.64964886,152.34,152.3,19.67546883]
[1750114197124,26.0,152.37,152.31,19.67546883]
[1750114197306,19.67546883,152.35,152.2,0.42648471]
[1750114197633,19.67546883,152.34,152.29,19.67546883]
[1750114197929,38.32511769,152.35,152.3,6.56598818]
[1750114198134,38.32511769,152.35,152.3,26.24145701]
[1750114198426,38.32511769,152.35,152.3,22.98095863]
[1750114198427,4.40557216,152.34,152.3,22.98095863]
[1750114198631,18.64964886,152.35,152.31,19.67546883]
[1750114199001,38.32511769,152.35,152.3,42.65642746]
[1750114199197,19.67546883,152.31,152.25,19.67546883]
[1750114199399,19.67546883,152.31,152.21,16.4241053]
[1750114199400,4.43475761,152.3,152.26,19.67546883]
[1750114199604,4.43475761,152.29,152.26,19.67546883]
[1750114199829,4.43475761,152.29,152.21,16.4241053]
[1750114199830,4.43475761,152.28,152.21,16.4241053]
[1750114200020,4.43475761,152.27,152.21,16.4241053]
[1750114200221,5.54327732,152.27,152.26,19.67546883]
[1750114200426,4.46293086,152.27,152.26,19.67546883]
[1750114201135,4.46293086,152.27,152.22,26.0]
[1750114201435,10.12807158,152.26,152.24,26.0]
[1750114201601,19.67546883,152.37,152.24,26.0]
[1750114201602,7.50198253,152.34,152.33,26.0]
[1750114201800,7.50198253,152.37,152.34,6.56426414]
[1750114202034,7.50198253,152.4,152.36,45.67546883]
[1750114202246,10.44507354,152.42,152.39,19.67546883]
[1750114202547,24.37183828,152.6,152.39,19.67546883]
[1750114202548,7.58384528,152.41,152.4,26.0]
[1750114202751,10.445074,152.59,152.4,26.0]
[1750114202752,7.58384528,152.42,152.4,26.0]
[1750114203109,7.58384528,152.5,152.37,26.0]
[1750114203328,26.0,152.46,152.34,55.79624522]
[1750114203526,0.14216157,152.43,152.34,55.79624522]
[1750114203736,19.67546883,152.38,152.34,32.82132072]
[1750114203920,19.67546883,152.39,152.33,19.67546883]
[1750114204239,19.67546883,152.35,152.31,22.97944979]
[1750114204427,38.32511769,152.32,152.31,6.56555708]
[1750114204610,7.58384528,152.35,152.31,42.65491862]
[1750114204808,7.58384528,152.36,152.33,19.67546883]
[1750114205118,7.58384528,152.39,152.31,55.80723522]
[1750114205424,7.58384528,152.38,152.37,19.67546883]
[1750114205628,7.58384528,152.39,152.35,19.67546883]
[1750114205815,7.58384528,152.39,152.31,55.80723522]
[1750114205816,19.67546883,152.36,152.31,19.67546883]
[1750114206025,26.23349414,152.37,152.29,32.83050864]
[1750114206212,77.05997885,152.36,152.26,6.56771312]
[1750114206529,77.05997885,152.36,152.17,23.00059143]
[1750114206530,18.64964886,152.29,152.17,23.00059143]
[1750114206722,2.27841562,152.28,152.18,26.0]
[1750114206932,2.27841562,152.27,152.17,23.00059143]
[1750114207145,2.27841562,152.26,152.17,23.00059143]
[1750114207351,52.23349414,152.24,152.17,6.57159755]
[1750114207643,18.79181043,152.22,152.15,6.63290577]
[1750114207849,7.58384528,152.2,152.15,0.06077659]
[1750114208141,45.16446706,152.19,152.15,0.06077659]
[1750114208443,14.42319465,152.18,152.15,0.06077659]
[1750114208613,6.83934937,152.17,152.15,0.06077659]
[1750114208944,6.83934937,152.16,152.15,0.06077659]
[1750114209341,7.58384528,152.24,152.17,26.0]
[1750114209655,2.27956697,152.23,152.18,26.0]
[1750114209858,7.58384528,152.27,152.17,26.0]
[1750114210065,7.58384528,152.28,152.25,19.67546883]
[1750114210348,7.58384528,152.28,152.17,26.0]
[1750114210537,7.58384528,152.29,152.18,18.933972]
[1750114210733,7.58384528,152.28,152.18,18.933972]
[1750114210950,7.58384528,152.3,152.27,19.67546883]
[1750114211127,7.58384528,152.33,152.22,18.64964886]
[1750114211329,7.58384528,152.31,152.22,18.64964886]
[1750114211531,10.44507354,152.34,152.3,19.67546883]
[1750114211839,19.67546883,152.37,152.3,19.67546883]
[1750114211840,2.28232737,152.33,152.3,6.56598818]
[1750114212025,2.28232737,152.33,152.31,0.28432314]
[1750114212232,7.59877559,152.39,152.3,6.56598818]
[1750114212554,7.59877559,152.35,152.17,6.57159755]
[1750114212728,7.59877559,152.29,152.17,6.57159755]
[1750114212925,9.88204209,152.28,152.22,0.28432314]
[1750114213148,7.59877559,152.26,152.25,19.67546883]
[1750114213453,2.2832665,152.26,152.25,38.60944083]
[1750114213665,7.60253819,152.31,152.26,18.933972]
[1750114213954,6.84747576,152.3,152.29,0.28432314]
[1750114214147,7.60253819,152.36,152.32,26.0]
[1750114214348,2.28448476,152.35,152.34,19.67546883]
[1750114214557,2.28448476,152.35,152.29,18.933972]
[1750114214736,9.88702295,152.34,152.29,18.933972]
[1750114214936,2.28448476,152.33,152.29,18.933972]
[1750114215150,7.60253819,152.34,152.32,19.67546883]
[1750114215455,2.2837785,152.33,152.29,18.933972]
[1750114215654,7.60253819,152.37,152.29,18.933972]
[1750114215861,7.60253819,152.41,152.36,51.21305132]
[1750114216032,2.28534637,152.4,152.37,18.933972]
[1750114216233,6.60253819,152.41,152.37,18.933972]
[1750114216454,6.55307994,152.6,152.44,18.64964886]
[1750114216655,2.28499786,152.59,152.56,19.67546883]
[1750114216837,2.28499786,152.58,152.56,12.90366883]
[1750114217041,19.67546883,152.58,152.44,0.14216157]
[1750114217260,32.55269863,152.61,152.43,52.02]
[1750114217261,6.55269863,152.61,152.54,19.67546883]
[1750114217443,6.55269863,152.61,152.53,19.67546883]
[1750114217641,22.93432499,152.61,152.5,19.67546883]
[1750114217954,22.93432499,152.61,152.51,2.42852547]
[1750114217955,19.67546883,152.55,152.51,2.42852547]
[1750114218129,26.0,152.59,152.52,2.42852547]
[1750114218332,19.67546883,152.55,152.5,19.67546883]
[1750114218545,19.67546883,152.54,152.51,2.42537297]
[1750114218741,19.67546883,152.56,152.49,6.55778864]
[1750114218946,19.67546883,152.56,152.51,19.67546883]
[1750114219534,16.38162636,152.61,152.46,22.95684113]
[1750114219535,19.67546883,152.55,152.46,22.95684113]
[1750114219737,19.67546883,152.55,152.51,19.67546883]
[1750114219933,19.67546883,152.55,152.5,19.67546883]
[1750114220133,16.38162636,152.61,152.51,19.67546883]
[1750114220329,16.38162636,152.61,152.49,6.55749617]
[1750114220635,19.67546883,152.55,152.5,19.67546883]
[1750114220830,6.55307994,152.6,152.52,19.67546883]
[1750114221030,18.79181043,152.59,152.43,68.42084467]
[1750114221248,19.67546883,152.53,152.48,19.67546883]
[1750114221640,26.0,152.49,152.27,32.83636407]
[1750114221842,50.72,152.48,152.41,19.67546883]
[1750114222070,50.72,152.48,152.3,22.98095863]
[1750114222071,56.0,152.46,152.3,22.98095863]
[1750114222258,0.14216157,152.45,152.33,19.67546883]
[1750114222439,19.67546883,152.41,152.36,19.67546883]
[1750114222639,19.67546883,152.41,152.3,32.56598818]
[1750114222835,0.14216157,152.45,152.35,19.67546883]
[1750114223062,56.0,152.46,152.3,32.56598818]
[1750114223063,19.67546883,152.42,152.37,19.67546883]
[1750114223363,19.67546883,152.42,152.3,35.06461931]
[1750114223662,19.67546883,152.42,152.37,19.67546883]
[1750114223961,19.67546883,152.41,152.36,19.67546883]
[1750114224465,19.67546883,152.4,152.36,19.67546883]
[1750114224640,30.0,152.46,152.39,19.67546883]
[1750114224839,30.0,152.46,152.33,18.64964886]
[1750114224840,56.0,152.46,152.34,0.28432314]
[1750114225037,19.67546883,152.42,152.37,19.67546883]
[1750114225365,19.67546883,152.42,152.23,34.56065834]
[1750114225547,19.67546883,152.39,152.3,40.77398314]
[1750114225864,19.67546883,152.39,152.23,34.56065834]
[1750114225865,19.67546883,152.33,152.28,19.67546883]
[1750114226163,19.67546883,152.29,152.24,19.67546883]
[1750114226368,2.27347427,152.28,152.25,19.67546883]
[1750114226575,2.27347427,152.27,152.24,19.67546883]
[1750114226755,2.27347427,152.26,152.21,51.98]
[1750114227072,19.67546883,152.32,152.25,19.67546883]
[1750114227273,2.27225962,152.31,152.28,19.67546883]
[1750114227566,2.27225962,152.3,152.21,74.97441992]
[1750114227764,21.94772845,152.29,152.24,19.67546883]
[1750114227955,2.27225962,152.28,152.21,51.98]
[1750114228269,19.67546883,152.26,152.21,51.98]
[1750114228456,2.27225962,152.25,152.23,19.67546883]
[1750114228655,22.97956666,152.31,152.22,19.67546883]
[1750114228656,2.27225962,152.24,152.22,19.67546883]
[1750114228964,22.97956666,152.31,152.21,51.98]
[1750114228965,2.27225962,152.23,152.21,51.98]
[1750114229136,2.27225962,152.23,152.15,19.67546883]
[1750114229137,21.94772845,152.22,152.08,16.43841519]
[1750114229337,21.94772845,152.22,152.06,52.0]
[1750114229338,6.57073395,152.19,152.06,6.57635144]
[1750114229561,6.57073395,152.19,152.12,19.67546883]
[1750114229562,19.67546883,152.17,152.12,19.67546883]
[1750114229772,6.57073395,152.19,152.13,22.09834597]
[1750114229954,19.67546883,152.19,152.14,22.09834597]
[1750114230150,19.67546883,152.2,152.15,2.42287714]
[1750114230456,19.67546883,152.24,152.16,2.42287714]
[1750114230642,0.14216157,152.29,152.19,19.67546883]
[1750114230836,19.67546883,152.24,152.2,2.42287714]
[1750114231060,19.67546883,152.24,152.21,2.42287714]
[1750114231245,19.67546883,152.24,152.22,2.42287714]
[1750114231573,26.24447625,152.23,152.22,2.42287714]
[1750114231742,6.5672818,152.27,152.22,2.42287714]
[1750114231940,6.5672818,152.27,152.23,19.67546883]
[1750114232143,6.5672818,152.27,152.18,0.28432314]
[1750114232144,26.24275063,152.27,152.24,2.41961235]
[1750114232383,19.67546883,152.26,152.24,2.41961235]
[1750114232678,19.67546883,152.25,152.15,19.67546883]
[1750114232978,30.0,152.25,152.13,0.14216157]
[1750114233150,19.67546883,152.2,152.15,19.67546883]
[1750114233349,26.2465242,152.19,152.14,19.67546883]
[1750114233575,6.57105537,152.19,152.14,19.67546883]
[1750114233786,19.67546883,152.18,152.11,6.57403937]
[1750114233949,16.42277436,152.23,152.16,19.67546883]
[1750114233950,19.67546883,152.21,152.16,19.67546883]
[1750114234290,19.67546883,152.2,152.12,0.14216157]
[1750114234443,6.56943896,152.22,152.17,19.67546883]
[1750114234648,6.56943896,152.22,152.1,18.79181043]
[1750114234649,26.0,152.15,152.02,6.57808183]
[1750114234954,19.67546883,152.14,152.03,26.0]
[1750114235151,26.0,152.19,152.09,19.67546883]
[1750114235152,19.67546883,152.13,152.09,19.67546883]
[1750114235363,19.67546883,152.11,152.07,19.67546883]
[1750114235551,19.67546883,152.14,152.04,6.57681263]
[1750114235756,6.57116572,152.18,152.1,19.67546883]
[1750114235971,6.57116572,152.18,152.14,19.67546883]
[1750114236175,6.56857593,152.24,152.17,19.67546883]
[1750114236354,6.56857593,152.24,152.19,19.67546883]
[1750114236355,26.24404476,152.24,152.19,19.67546883]
[1750114236553,30.0,152.2,152.14,0.28432314]
[1750114236760,30.0,152.2,152.18,19.67546883]
[1750114237063,30.0,152.2,152.19,2.41829967]
[1750114237275,19.67546883,152.24,152.19,22.0937685]
[1750114237447,6.56771312,152.26,152.2,22.0937685]
[1750114237649,19.67546883,152.25,152.21,2.41829967]
[1750114237880,6.3,152.23,152.22,2.41829967]
[1750114238175,6.56731585,152.27,152.22,2.41829967]
[1750114238394,6.56731585,152.27,152.23,2.41829967]
[1750114238551,20.41824886,152.34,152.2,0.28432314]
[1750114238552,22.9766771,152.33,152.2,0.28432314]
[1750114238878,6.56469506,152.33,152.22,0.28432314]
[1750114239050,6.56469506,152.33,152.23,2.41663377]
[1750114239249,6.56469506,152.33,152.29,19.67546883]
[1750114239471,6.56426414,152.34,152.28,19.67546883]
[1750114239650,6.56426414,152.34,152.3,19.67546883]
[1750114239969,19.67546883,152.35,152.31,19.67546883]
[1750114240755,19.67546883,152.36,152.31,19.67546883]
[1750114240984,6.56211037,152.39,152.34,19.67546883]
[1750114241283,6.56211037,152.39,152.27,0.28432314]
[1750114241284,6.56211037,152.39,152.35,19.67546883]
[1750114241567,7.6771,152.47,152.29,26.0]
[1750114241568,6.56167979,152.4,152.36,19.67546883]
[1750114241745,16.39898836,152.45,152.37,19.67546883]
[1750114241943,19.67546883,152.43,152.3,18.933972]
[1750114242145,19.67546883,152.43,152.39,19.67546883]
[1750114242363,49.67546883,152.4,152.31,6.56555708]
[1750114242556,19.67546883,152.39,152.34,19.67546883]
[1750114242767,19.67546883,152.39,152.31,6.56555708]
[1750114243147,49.67546883,152.4,152.31,6.56555708]
[1750114243292,19.67546883,152.32,152.24,6.56857593]
[1750114243495,49.58,152.39,152.19,52.04]
[1750114243496,6.56383327,152.35,152.21,35.07394108]
[1750114243795,6.56383327,152.35,152.3,19.67546883]
[1750114243949,19.67546883,152.34,152.29,19.67546883]
[1750114244154,32.5634358,152.36,152.3,19.67546883]
[1750114244351,26.0,152.36,152.3,19.67546883]
[1750114244582,19.67546883,152.35,152.3,19.67546883]
[1750114244781,49.58,152.39,152.24,0.42648471]
[1750114244782,32.56254101,152.38,152.24,0.42648471]
[1750114244963,19.67546883,152.36,152.24,0.42648471]
[1750114245160,19.67546883,152.34,152.29,19.67546883]
[1750114245394,19.67546883,152.33,152.24,18.933972]
[1750114245554,19.67546883,152.34,152.29,19.67546883]
[1750114245754,19.67546883,152.31,152.22,6.56943896]
[1750114245955,26.0,152.35,152.26,19.67546883]
[1750114246188,19.67546883,152.34,152.29,19.67546883]
[1750114246351,45.67546883,152.35,152.3,19.67546883]
[1750114246556,45.67546883,152.35,152.22,22.99303638]
[1750114246557,19.67546883,152.31,152.22,6.56943896]
[1750114246782,19.67546883,152.31,152.27,19.67546883]
[1750114247003,26.0,152.35,152.3,19.67546883]
[1750114247207,51.45948495,152.4,152.34,19.67546883]
[1750114247208,6.56167979,152.4,152.34,19.67546883]
[1750114247383,18.64964886,152.47,152.37,19.67546883]
[1750114247575,18.64964886,152.47,152.34,6.56395982]
[1750114247576,19.67546883,152.42,152.34,6.56395982]
[1750114247783,19.67546883,152.41,152.31,6.70771865]
[1750114248127,16.39832978,152.46,152.39,19.67546883]
[1750114248279,19.67546883,152.45,152.4,19.67546883]
[1750114248479,19.67546883,152.46,152.41,19.67546883]
[1750114248680,75.22,152.47,152.41,19.67546883]
[1750114248877,19.67546883,152.46,152.36,0.14216157]
[1750114249301,6.55823714,152.48,152.41,19.67546883]
[1750114249517,19.67546883,152.46,152.41,19.67546883]
[1750114249687,19.67546883,152.45,152.4,19.67546883]
[1750114250078,19.67546883,152.45,152.36,6.7054759]
[1750114250079,6.55925044,152.46,152.41,19.67546883]
[1750114250313,6.55737704,152.5,152.43,19.67546883]
[1750114250528,19.67546883,152.49,152.45,19.67546883]
[1750114250697,26.23284587,152.5,152.45,19.67546883]
[1750114250903,6.55737704,152.5,152.44,19.67546883]
[1750114251407,55.72378241,152.54,152.44,19.67546883]
[1750114251585,94.67546883,152.51,152.39,0.14216157]
[1750114251794,19.67546883,152.5,152.39,0.14216157]
[1750114251989,19.67546883,152.5,152.45,19.67546883]
[1750114252187,19.67546883,152.5,152.39,0.14216157]
[1750114252188,19.67546883,152.49,152.4,6.56167979]
[1750114252389,19.67546883,152.46,152.37,0.14216157]
[1750114252611,26.0,152.47,152.35,0.06077659]
[1750114252816,19.67546883,152.42,152.37,19.67546883]
[1750114253093,19.67546883,152.4,152.35,0.06077659]
[1750114253292,19.67546883,152.37,152.35,0.06077659]
[1750114253512,26.0,152.41,152.35,0.06077659]
[1750114253513,6.56340246,152.36,152.35,0.06077659]
[1750114253880,26.23887129,152.36,152.35,0.06077659]
[1750114254132,6.56340246,152.36,152.35,0.06077659]
[1750114254280,68.55546883,152.4,152.35,19.73624542]
[1750114254502,48.88,152.4,152.35,19.73624542]
[1750114254740,19.67546883,152.38,152.35,0.06077659]
[1750114255249,19.67546883,152.36,152.35,0.06077659]
[1750114255432,26.23887129,152.36,152.35,0.06077659]
[1750114255743,26.38103286,152.36,152.35,0.06077659]
[1750114255924,26.0,152.33,152.24,19.67546883]
[1750114256104,19.67546883,152.28,152.21,6.56987057]
[1750114256307,48.74,152.32,152.25,19.67546883]
[1750114256539,48.74,152.32,152.26,19.67546883]
[1750114256716,48.74,152.32,152.21,23.27887014]
[1750114256717,19.67546883,152.29,152.25,19.67546883]
[1750114256919,19.67546883,152.28,152.23,19.67546883]
[1750114257331,19.67546883,152.3,152.25,19.67546883]
[1750114257533,19.67546883,152.29,152.21,6.56987057]
[1750114257707,55.30517738,152.32,152.25,19.67546883]
[1750114257907,55.30517738,152.32,152.21,22.994547]
[1750114257908,19.67546883,152.28,152.24,19.67546883]
[1750114258176,19.67546883,152.3,152.21,6.56987057]
[1750114258316,19.67546883,152.28,152.24,19.67546883]
[1750114258516,81.30517738,152.32,152.19,52.04]
[1750114258517,19.67546883,152.25,152.19,52.04]
[1750114258714,26.0,152.29,152.19,52.04]
[1750114258715,48.6,152.26,152.19,52.04]
[1750114258926,19.67546883,152.23,152.19,52.04]
[1750114259118,74.6,152.26,152.19,52.04]
[1750114259324,19.67546883,152.23,152.19,52.04]
[1750114259526,6.56814449,152.25,152.19,52.04]
[1750114259710,19.67546883,152.23,152.19,52.04]
[1750114259910,74.6,152.26,152.19,71.71546883]
[1750114259911,81.16778824,152.26,152.19,71.71546883]
[1750114260110,81.16778824,152.26,152.19,52.04]
[1750114260341,81.16778824,152.26,152.16,19.67546883]
[1750114260342,19.67546883,152.21,152.16,19.67546883]
[1750114260510,97.58707104,152.26,152.07,6.57591898]
[1750114260511,19.67546883,152.17,152.07,6.57591898]
[1750114260717,19.67546883,152.09,152.0,1.386941]
[1750114260930,19.67546883,152.05,152.0,1.386941]
[1750114261121,19.67546883,152.03,152.0,1.386941]
[1750114261334,0.14216157,152.09,152.01,19.67546883]
[1750114261514,6.57462195,152.1,152.02,19.67546883]
[1750114261715,18.933972,152.14,152.09,19.67546883]
[1750114261919,0.14216157,152.13,152.04,26.0]
[1750114262257,48.28,152.21,152.02,10.0]
[1750114262454,26.0,152.22,152.07,18.933972]
[1750114262624,52.5029042,152.32,152.18,19.67546883]
[1750114262625,19.67546883,152.23,152.18,19.67546883]
[1750114262815,48.32,152.27,152.17,19.67546883]